bitfinex/quotes_BTCUSD_20220109
["timestamp","ask_amount","ask_price","bid_price","bid_amount"]
[1641726527559,0.00040547,41789.0,41782.0,0.05986172]
[1641726527763,0.06026847,41789.0,41782.0,0.06686172]
[1641726528211,0.00040547,41789.0,41782.0,0.007]
[1641726528613,0.00041579,41789.0,41784.0,0.00053752]
[1641726529414,0.00041579,41789.0,41785.0,0.0598576]
[1641726529615,0.00041581,41789.0,41784.0,0.00053752]
[1641726529814,0.00041581,41789.0,41784.0,0.00453752]
[1641726530716,0.00041581,41789.0,41784.0,0.06439152]
[1641726530919,0.00041581,41789.0,41786.0,0.059852]
[1641726531417,0.00041581,41789.0,41787.0,0.05985297]
[1641726531656,0.00041581,41789.0,41787.0,0.400549]
[1641726531859,0.00041581,41789.0,41787.0,0.46016649]
[1641726532057,0.00041556,41789.0,41787.0,0.46016649]
[1641726532859,0.00041556,41789.0,41787.0,0.52001449]
[1641726533057,0.00041557,41789.0,41788.0,0.445056]
[1641726533658,0.00041557,41789.0,41788.0,0.00053388]
[1641726533858,0.00041557,41789.0,41788.0,0.00953388]
[1641726534058,0.00041557,41789.0,41788.0,0.34919911]
[1641726534260,0.00041558,41789.0,41788.0,0.00953388]
[1641726535706,0.00041558,41789.0,41788.0,0.00053388]
[1641726535906,0.00041558,41789.0,41788.0,0.00853388]
[1641726536307,0.00041558,41789.0,41788.0,0.60853388]
[1641726536509,0.00041891,41789.0,41788.0,1.11343703]
[1641726536808,0.00041891,41789.0,41788.0,1.13334703]
[1641726537208,0.00041891,41789.0,41788.0,1.12534703]
[1641726537408,0.00041891,41789.0,41788.0,0.97016639]
[1641726537607,0.00041891,41789.0,41788.0,0.64503303]
[1641726538010,0.00041891,41789.0,41788.0,0.26882403]
[1641726538209,0.00041891,41789.0,41788.0,0.65403303]
[1641726538409,0.00041891,41789.0,41788.0,1.05403303]
[1641726538609,0.00041891,41789.0,41788.0,0.65403303]
[1641726538809,0.00041891,41789.0,41788.0,0.88907123]
[1641726539464,0.00041891,41789.0,41788.0,0.98907123]
[1641726539666,0.00041528,41789.0,41788.0,1.08907123]
[1641726539863,0.00041528,41789.0,41788.0,1.05033838]
[1641726540464,0.00041528,41789.0,41788.0,1.41211688]
[1641726540864,0.0004153,41789.0,41788.0,1.81290798]
[1641726541068,0.0004153,41789.0,41788.0,2.36390798]
[1641726541267,0.0001,41798.0,41790.0,1.276]
[1641726541469,0.0001,41798.0,41794.0,0.059823]
[1641726541667,0.0001,41798.0,41795.0,0.385209]
[1641726542069,0.0001,41798.0,41795.0,0.535209]
[1641726542667,0.0001,41798.0,41795.0,1.9906778]
[1641726542912,0.0001,41798.0,41796.0,0.059823]
[1641726543211,0.0001,41798.0,41797.0,0.75375582]
[1641726543612,0.0001,41798.0,41797.0,0.85442185]
[1641726543910,0.0001,41798.0,41797.0,0.87142185]
[1641726544512,0.0001,41798.0,41797.0,2.34742185]
[1641726544713,0.0002,41799.0,41797.0,1.98014581]
[1641726544912,0.0002,41799.0,41798.0,1.861209]
[1641726545112,0.0002,41800.0,41798.0,2.431209]
[1641726545313,0.0002,41800.0,41799.0,1.661209]
[1641726545512,0.0002,41800.0,41799.0,1.711209]
[1641726545716,0.0002,41800.0,41799.0,1.811209]
[1641726545912,0.0002,41800.0,41799.0,1.827209]
[1641726546113,0.0002,41800.0,41799.0,0.551209]
[1641726546313,0.00062169,41800.0,41799.0,0.551209]
[1641726546757,0.00062169,41800.0,41799.0,2.19019984]
[1641726546958,0.00062169,41800.0,41799.0,0.551209]
[1641726547159,0.00062169,41800.0,41799.0,0.535209]
[1641726547960,0.00062169,41800.0,41799.0,0.553209]
[1641726548158,0.00062169,41800.0,41799.0,0.853209]
[1641726548561,0.00062169,41800.0,41799.0,2.13012922]
[1641726548562,0.00062716,41800.0,41799.0,2.13012922]
[1641726548761,0.00052716,41800.0,41799.0,2.13012922]
[1641726549162,0.00052716,41800.0,41799.0,2.11212922]
[1641726549363,0.00040002,41802.0,41799.0,2.613331]
[1641726549564,0.00031001,41802.0,41801.0,2.711209]
[1641726549762,0.00031001,41802.0,41801.0,1.485209]
[1641726549963,0.0002,41802.0,41801.0,2.861209]
[1641726550411,0.0001,41805.0,41803.0,1.05]
[1641726550612,0.00320163,41806.0,41804.0,3.08371249]
[1641726550813,0.00320163,41806.0,41805.0,1.41424376]
[1641726551014,0.00320163,41806.0,41805.0,1.79945276]
[1641726551213,5.92817784,41800.0,41799.0,1.87429786]
[1641726551415,5.44969445,41800.0,41799.0,1.87429786]
[1641726551613,5.44969445,41800.0,41799.0,1.63575552]
[1641726551813,5.44969445,41800.0,41799.0,1.87626081]
[1641726552013,5.44969445,41800.0,41799.0,1.90126081]
[1641726552414,4.36232213,41800.0,41799.0,1.90126081]
[1641726552615,4.36232213,41800.0,41799.0,0.62526081]
[1641726552816,4.36232213,41800.0,41799.0,0.08573322]
[1641726553016,4.74720313,41800.0,41799.0,0.08573322]
[1641726553217,4.74720313,41800.0,41799.0,0.06073322]
[1641726553416,4.36232213,41800.0,41799.0,0.06073322]
[1641726553617,5.93268014,41800.0,41799.0,0.06073322]
[1641726554015,5.93268014,41800.0,41799.0,0.14473322]
[1641726555263,5.93268014,41800.0,41799.0,0.06073322]
[1641726555663,4.36232213,41800.0,41799.0,0.06073322]
[1641726555865,4.36232213,41800.0,41799.0,0.15373322]
[1641726556268,4.36232213,41800.0,41799.0,0.57363922]
[1641726557267,4.36232213,41800.0,41799.0,0.48063922]
[1641726557915,4.36232213,41800.0,41799.0,0.51963922]
[1641726559113,4.36232213,41800.0,41799.0,0.48063922]
[1641726559717,4.74720313,41800.0,41799.0,0.48063922]
[1641726559916,4.74720313,41800.0,41799.0,0.44782622]
[1641726560216,4.36232213,41800.0,41799.0,0.44782622]
[1641726561216,4.36232213,41800.0,41799.0,0.54047622]
[1641726562059,4.36232213,41800.0,41799.0,0.56947622]
[1641726563159,4.36232213,41800.0,41799.0,0.54047622]
[1641726564066,4.36232213,41800.0,41799.0,0.56347622]
[1641726565261,4.36232213,41800.0,41799.0,0.54047622]
[1641726566010,4.36232213,41800.0,41799.0,0.56347622]
[1641726567213,4.36232213,41800.0,41799.0,0.44382622]
[1641726567410,4.74720313,41800.0,41799.0,0.44382622]
[1641726567810,4.74720313,41800.0,41799.0,0.42082622]
[1641726568011,4.74720313,41800.0,41799.0,0.47882622]
[1641726568414,4.36232213,41800.0,41799.0,0.47882622]
[1641726569259,4.36232213,41800.0,41799.0,0.42082622]
[1641726569957,4.36232213,41800.0,41799.0,0.44282622]
[1641726571257,4.36232213,41800.0,41799.0,0.42082622]
[1641726572058,4.36232213,41800.0,41799.0,0.44182622]
[1641726573414,4.36232213,41800.0,41799.0,0.42082622]
[1641726574114,4.36232213,41800.0,41799.0,0.44182622]
[1641726575316,4.36232213,41800.0,41799.0,0.42082622]
[1641726575915,4.36232213,41800.0,41799.0,0.44182622]
[1641726577163,4.36232213,41800.0,41799.0,0.42082622]
[1641726577762,4.35732213,41800.0,41799.0,0.42082622]
[1641726577963,4.35825902,41800.0,41799.0,0.45182622]
[1641726579264,4.35825902,41800.0,41799.0,0.42082622]
[1641726580064,4.35825902,41800.0,41799.0,0.45782622]
[1641726580705,4.35732213,41800.0,41799.0,0.45782622]
[1641726581406,4.35732213,41800.0,41799.0,0.42082622]
[1641726582006,4.35732213,41800.0,41799.0,0.45782622]
[1641726583308,4.35732213,41800.0,41799.0,0.42082622]
[1641726584161,4.35732213,41800.0,41799.0,0.49182622]
[1641726585360,4.35732213,41800.0,41799.0,0.42082622]
[1641726585960,4.35732213,41800.0,41799.0,0.47382622]
[1641726587262,4.35732213,41800.0,41799.0,0.42082622]
[1641726587915,4.35732213,41800.0,41799.0,0.50182622]
[1641726589213,4.35732213,41800.0,41799.0,0.42082622]
[1641726590120,4.35732213,41800.0,41799.0,0.50082622]
[1641726590315,4.35732213,41800.0,41799.0,0.50070122]
[1641726591418,4.35732213,41800.0,41799.0,0.42070122]
[1641726592064,4.35732213,41800.0,41799.0,0.46370122]
[1641726593365,4.35732213,41800.0,41799.0,0.42070122]
[1641726593569,4.35732213,41800.0,41799.0,0.42110569]
[1641726594064,4.35732213,41800.0,41799.0,0.47410569]
[1641726595267,4.35732213,41800.0,41799.0,0.42110569]
[1641726596119,4.35732213,41800.0,41799.0,0.48910569]
[1641726597321,4.35732213,41800.0,41799.0,0.42110569]
[1641726598121,4.35732213,41800.0,41799.0,0.49110569]
[1641726598523,4.35732213,41800.0,41799.0,0.49062904]
[1641726599460,4.35732213,41800.0,41799.0,0.42062904]
[1641726600061,4.35732213,41800.0,41799.0,0.44862904]
[1641726601262,4.35732213,41800.0,41799.0,0.42062904]
[1641726601463,4.35732213,41800.0,41799.0,0.52062904]
[1641726602065,4.35732213,41800.0,41799.0,0.54562904]
[1641726602765,4.35732213,41800.0,41799.0,0.44562904]
[1641726603212,4.35732213,41800.0,41799.0,0.42062904]
[1641726604012,4.35732213,41800.0,41799.0,0.44562904]
[1641726605616,4.35732213,41800.0,41799.0,0.42062904]
[1641726606016,4.35732213,41800.0,41799.0,0.44562904]
[1641726606670,4.35732213,41800.0,41799.0,1.06135857]
[1641726606872,4.35732213,41800.0,41799.0,2.53860794]
[1641726607070,4.35732213,41800.0,41799.0,2.2550544]
[1641726607271,4.35732213,41800.0,41799.0,2.2300544]
[1641726608171,4.35732213,41800.0,41799.0,2.2540544]
[1641726608570,3.27002966,41800.0,41799.0,2.2540544]
[1641726608771,3.27002966,41800.0,41799.0,2.6389354]
[1641726609074,2.45456582,41800.0,41799.0,2.6389354]
[1641726609272,2.45456582,41800.0,41799.0,1.3389354]
[1641726609474,2.45456582,41800.0,41799.0,1.71735284]
[1641726609874,2.45456582,41800.0,41799.0,1.64306106]
[1641726610074,2.45456582,41800.0,41799.0,2.94206106]
[1641726610446,2.45456582,41800.0,41799.0,1.66606106]
[1641726610647,2.45456582,41800.0,41799.0,1.28764362]
[1641726611049,2.45456582,41800.0,41799.0,1.02851004]
[1641726611248,2.45456582,41800.0,41799.0,0.85551004]
[1641726611446,2.45456582,41800.0,41799.0,0.80551004]
[1641726612047,2.45456582,41800.0,41799.0,0.83351004]
[1641726613047,2.45456582,41800.0,41799.0,0.88351004]
[1641726613349,2.45456582,41800.0,41799.0,1.00551004]
[1641726613546,2.45456582,41800.0,41799.0,1.0059882]
[1641726614161,2.45456582,41800.0,41799.0,1.39839224]
[1641726615162,2.45428015,41800.0,41799.0,1.39839224]
[1641726615363,2.45428015,41800.0,41799.0,1.36739224]
[1641726616165,2.45428015,41800.0,41799.0,1.38639224]
[1641726617265,2.45428015,41800.0,41799.0,1.36739224]
[1641726618116,2.45428015,41800.0,41799.0,1.38539224]
[1641726618316,2.45428015,41800.0,41799.0,0.8739882]
[1641726618519,2.45428015,41800.0,41799.0,0.8239882]
[1641726619319,2.45428015,41800.0,41799.0,0.8059882]
[1641726619920,2.45428015,41800.0,41799.0,1.0059882]
[1641726620117,2.45428015,41800.0,41799.0,1.0499882]
[1641726620819,2.45428015,41800.0,41799.0,0.8499882]
[1641726621419,2.45428015,41800.0,41799.0,0.8559882]
[1641726622065,2.45428015,41800.0,41799.0,0.9019882]
[1641726623263,2.45428015,41800.0,41799.0,0.8559882]
[1641726624065,1.63871932,41800.0,41799.0,0.8989882]
[1641726624565,1.63871932,41800.0,41799.0,0.8489882]
[1641726625414,1.63871932,41800.0,41799.0,0.8059882]
[1641726626017,1.63871932,41800.0,41799.0,0.8319882]
[1641726626420,1.63871932,41800.0,41799.0,1.25381964]
[1641726627319,1.63871932,41800.0,41799.0,1.22781964]
[1641726627520,1.63871932,41800.0,41799.0,1.37781964]
[1641726628019,1.63871932,41800.0,41799.0,1.0379882]
[1641726629268,1.63871932,41800.0,41799.0,1.37244512]
[1641726630067,1.63871932,41800.0,41799.0,1.40044512]
[1641726630267,1.63871932,41800.0,41799.0,1.0339882]
[1641726631068,1.63871932,41800.0,41799.0,1.39708551]
[1641726631272,1.63871932,41800.0,41799.0,1.36908551]
[1641726631470,1.63871932,41800.0,41799.0,1.37210971]
[1641726632071,1.63871932,41800.0,41799.0,1.39710971]
[1641726632270,1.63871932,41800.0,41799.0,1.39682404]
[1641726633414,1.63871932,41800.0,41799.0,1.37182404]
[1641726633615,1.63871932,41800.0,41799.0,1.00570253]
[1641726634217,1.63871932,41800.0,41799.0,1.40186338]
[1641726634715,1.63871932,41800.0,41799.0,1.03670253]
[1641726635316,1.63871932,41800.0,41799.0,1.00570253]
[1641726635714,1.63871932,41800.0,41799.0,0.8059882]
[1641726636115,1.63871932,41800.0,41799.0,0.8299882]
[1641726636970,1.63871932,41800.0,41799.0,0.8799882]
[1641726637168,1.63871932,41800.0,41799.0,1.0299882]
[1641726637370,1.63871932,41800.0,41799.0,1.36919928]
[1641726637971,1.63871932,41800.0,41799.0,1.0059882]
[1641726638170,1.63871932,41800.0,41799.0,1.0279882]
[1641726638572,1.63871932,41800.0,41799.0,1.39090939]
[1641726638772,0.55236416,41800.0,41799.0,2.44090939]
[1641726638972,0.55236416,41800.0,41799.0,1.39090939]
[1641726639171,0.55236416,41800.0,41799.0,1.69090939]
[1641726639473,0.00048967,41805.0,41799.0,1.69090939]
[1641726639474,0.00048967,41805.0,41804.0,1.05]
[1641726639671,0.00048967,41805.0,41804.0,1.134881]
[1641726639871,0.00048967,41805.0,41804.0,1.764698]
[1641726640072,0.00048967,41805.0,41804.0,1.852698]
[1641726640270,0.00048976,41805.0,41804.0,1.852698]
[1641726640520,0.00048976,41805.0,41804.0,1.102698]
[1641726641123,0.00048976,41805.0,41804.0,0.952698]
[1641726641322,0.00048976,41805.0,41804.0,0.864698]
[1641726641721,0.00048976,41805.0,41804.0,0.479817]
[1641726642124,0.00048976,41805.0,41804.0,0.514817]
[1641726643425,0.00048976,41805.0,41804.0,0.479817]
[1641726643627,0.00048976,41805.0,41804.0,0.74788014]
[1641726643826,0.00048976,41805.0,41804.0,0.84788014]
[1641726644027,0.00048976,41805.0,41804.0,0.74788014]
[1641726644267,0.00048976,41805.0,41804.0,0.77688014]
[1641726645470,0.0004098,41805.0,41804.0,0.74780306]
[1641726646172,0.0004098,41805.0,41804.0,1.25103534]
[1641726646369,0.00012703,41805.0,41804.0,1.73717772]
[1641726646572,0.00012703,41805.0,41804.0,1.36294544]
[1641726646970,0.00012703,41805.0,41804.0,1.09362092]
[1641726646971,0.0004098,41805.0,41804.0,1.09362092]
[1641726647769,0.0004098,41805.0,41804.0,0.89362092]
[1641726648015,0.0002,41806.0,41804.0,0.86462092]
[1641726648215,0.0002,41806.0,41804.0,0.50573992]
[1641726648817,0.0002,41806.0,41804.0,0.70573992]
[1641726649317,0.0002,41806.0,41804.0,0.50573992]
[1641726649617,0.0002,41806.0,41804.0,0.67973992]
[1641726650017,0.0002,41806.0,41804.0,0.47973992]
[1641726650218,0.0002,41806.0,41804.0,0.50273992]
[1641726650820,6.185e-05,41805.0,41804.0,0.50273992]
[1641726652067,6.185e-05,41805.0,41804.0,0.50073992]
[1641726652270,6.185e-05,41805.0,41804.0,0.88562092]
[1641726652869,6.185e-05,41805.0,41804.0,1.03562092]
[1641726653169,6.185e-05,41805.0,41804.0,1.08562092]
[1641726653369,6.185e-05,41805.0,41804.0,1.06462092]
[1641726653578,6.185e-05,41805.0,41804.0,1.0653461]
[1641726654169,6.185e-05,41805.0,41804.0,1.0843461]
[1641726654569,6.185e-05,41805.0,41804.0,0.8843461]
[1641726654771,0.0002,41806.0,41805.0,0.3]
[1641726654972,0.0002,41806.0,41805.0,0.56357987]
[1641726655172,0.0002,41806.0,41805.0,0.66357987]
[1641726655415,0.0002,41806.0,41805.0,0.36357987]
[1641726656015,0.0002,41806.0,41805.0,0.26357987]
[1641726656213,0.0002,41806.0,41805.0,0.28857987]
[1641726657516,0.0002,41806.0,41805.0,0.26357987]
[1641726658114,0.0002,41806.0,41805.0,0.28257987]
[1641726658517,0.0002,41806.0,41805.0,0.28330468]
[1641726659365,0.0002,41806.0,41805.0,0.26430468]
[1641726660168,0.0002,41806.0,41805.0,0.28330468]
[1641726661466,0.0002,41806.0,41805.0,0.26430468]
[1641726662066,0.0002,41806.0,41805.0,0.31430468]
[1641726662266,0.0002,41806.0,41805.0,0.43730468]
[1641726662467,0.0002,41806.0,41805.0,0.33730468]
[1641726662666,0.0002,41806.0,41805.0,0.67218568]
[1641726663117,0.3071178,41810.0,41805.0,0.67218568]
[1641726663320,0.00040779,41810.0,41807.0,0.119642]
[1641726663721,0.00040779,41810.0,41807.0,0.5514582]
[1641726663918,0.00040779,41810.0,41808.0,0.384881]
[1641726664118,0.00040779,41810.0,41809.0,0.00120524]
[1641726664321,0.00040779,41810.0,41809.0,1.43608624]
[1641726664520,0.00040779,41810.0,41809.0,0.48608624]
[1641726664717,0.00040786,41810.0,41809.0,0.48608624]
[1641726665720,0.00040786,41810.0,41809.0,0.38608624]
[1641726665919,0.00040787,41810.0,41809.0,0.38608624]
[1641726666119,0.00040787,41810.0,41809.0,0.90184021]
[1641726666320,0.00040787,41810.0,41809.0,1.00184021]
[1641726666524,0.00099915,41811.0,41810.0,1.434881]
[1641726666781,0.00099915,41811.0,41810.0,2.770676]
[1641726666979,0.00099915,41811.0,41810.0,2.870676]
[1641726668182,0.00099915,41811.0,41810.0,1.623676]
[1641726668480,0.00099915,41811.0,41810.0,1.62434479]
[1641726668880,0.00031001,41813.0,41810.0,1.62434479]
[1641726669081,0.00031001,41817.0,41814.0,0.00409595]
[1641726669281,0.00031001,41817.0,41814.0,0.95870956]
[1641726669483,0.00031001,41817.0,41814.0,0.38897695]
[1641726670179,0.00031001,41817.0,41814.0,0.47797695]
[1641726670419,0.00163923,41815.0,41814.0,0.47797695]
[1641726670822,0.00153923,41815.0,41814.0,0.47797695]
[1641726671418,0.00153923,41815.0,41814.0,0.00409595]
[1641726671821,0.50153923,41815.0,41814.0,0.00409595]
[1641726672020,1.27933278,41815.0,41814.0,0.00409595]
[1641726672220,1.27933278,41815.0,41814.0,0.06809595]
[1641726673121,0.77933278,41815.0,41814.0,0.06809595]
[1641726673520,0.38642023,41815.0,41814.0,0.0051007]
[1641726674021,0.7780899,41815.0,41814.0,0.0051007]
[1641726674272,0.7780899,41815.0,41814.0,0.0561007]
[1641726674873,0.77978501,41815.0,41814.0,0.0561007]
[1641726675073,0.8793618,41815.0,41814.0,0.0561007]
[1641726675474,0.8793618,41815.0,41814.0,0.0051007]
[1641726675878,0.38640129,41815.0,41814.0,0.0051007]
[1641726676077,0.00152029,41815.0,41814.0,0.0051007]
[1641726676277,0.00752029,41815.0,41814.0,0.0201007]
[1641726676475,0.39240129,41815.0,41814.0,0.0200067]
[1641726677277,0.39280556,41815.0,41814.0,0.0200067]
[1641726677476,0.38280556,41815.0,41814.0,0.0050067]
[1641726678323,0.38280556,41815.0,41814.0,0.0670067]
[1641726678723,0.38240129,41815.0,41814.0,0.0670067]
[1641726679423,0.38240129,41815.0,41814.0,0.0050067]
[1641726679625,0.00041001,41816.0,41814.0,0.0050067]
[1641726679824,0.382784,41815.0,41814.0,0.0050067]
[1641726680326,0.382784,41815.0,41814.0,0.0730067]
[1641726680724,0.38257406,41815.0,41814.0,0.0730067]
[1641726681527,0.38257406,41815.0,41814.0,0.0050067]
[1641726681775,0.74171453,41815.0,41814.0,0.0050067]
[1641726681974,0.74171453,41815.0,41810.0,0.0008536]
[1641726681975,0.35466821,41811.0,41810.0,0.0008536]
[1641726682173,0.35466821,41811.0,41810.0,0.0004268]
[1641726682174,0.80881833,41811.0,41810.0,0.0004268]
[1641726682375,0.88910995,41811.0,41810.0,0.0004268]
[1641726682974,0.7891469,41811.0,41810.0,0.0004268]
[1641726683175,0.94894795,41811.0,41810.0,0.00085358]
[1641726683374,0.85440795,41811.0,41810.0,0.00042678]
[1641726683577,0.85440795,41811.0,41810.0,0.00126653]
[1641726683977,0.7544449,41811.0,41810.0,0.00126653]
[1641726684175,0.7594449,41811.0,41810.0,0.02349331]
[1641726684379,0.6996069,41811.0,41810.0,0.02349331]
[1641726684578,0.387569,41811.0,41810.0,0.02349331]
[1641726685526,0.382569,41811.0,41810.0,6.653e-05]
[1641726686325,0.384569,41811.0,41810.0,0.03106653]
[1641726687422,0.382569,41811.0,41810.0,6.653e-05]
[1641726688324,0.383569,41811.0,41810.0,0.04006653]
[1641726688523,0.383569,41811.0,41810.0,0.04]
[1641726689283,0.383569,41811.0,41810.0,0.4316372]
[1641726689284,0.001,41811.0,41810.0,0.4316372]
[1641726689481,0.00041371,41815.0,41810.0,0.384846]
[1641726689679,0.00041371,41815.0,41810.0,0.1]
[1641726689880,0.00039571,41815.0,41813.0,0.059804]
[1641726690083,0.00039571,41815.0,41813.0,0.37532836]
[1641726690981,0.00039578,41815.0,41813.0,0.37532836]
[1641726691179,0.00039578,41815.0,41813.0,0.43513228]
[1641726691781,0.00039578,41815.0,41813.0,0.119608]
[1641726692082,0.00039578,41815.0,41811.0,0.23922137]
[1641726692083,0.00040505,41815.0,41812.0,0.05981383]
[1641726692283,0.00040505,41815.0,41813.0,0.022]
[1641726692484,0.00040505,41815.0,41813.0,0.072]
[1641726692925,0.00040505,41815.0,41813.0,0.122]
[1641726693126,0.00040505,41815.0,41813.0,0.30143436]
[1641726693327,0.00040505,41815.0,41813.0,0.20143436]
[1641726693528,0.00040505,41815.0,41814.0,0.00083469]
[1641726694130,0.00081048,41815.0,41814.0,0.00083469]
[1641726694330,0.00040543,41815.0,41814.0,0.06083469]
[1641726694733,0.38297443,41815.0,41814.0,0.06083469]
[1641726695432,0.38297444,41815.0,41814.0,0.12064623]
[1641726695631,0.38297444,41815.0,41814.0,0.06064623]
[1641726696034,0.0001,41817.0,41816.0,1.25]
[1641726696234,0.00031001,41824.0,41816.0,1.25]
[1641726696235,0.62736236,41838.0,41821.0,0.001234]
[1641726696437,0.382569,41837.0,41830.0,0.059788]
[1641726696698,0.372569,41837.0,41828.0,0.119576]
[1641726696883,0.24931938,41828.0,41821.0,0.001234]
[1641726697085,0.42859259,41826.0,41821.0,0.001234]
[1641726697285,0.42859259,41826.0,41820.0,0.059803]
[1641726697482,0.42859259,41826.0,41820.0,0.11960435]
[1641726697688,0.42859259,41826.0,41822.0,0.059802]
[1641726697884,0.42859259,41826.0,41820.0,0.059806]
[1641726698084,0.73659247,41826.0,41817.0,0.239214]
[1641726698287,0.73659247,41826.0,41814.0,0.00083469]
[1641726698288,0.3916372,41825.0,41822.0,0.073]
[1641726698484,0.722584,41823.0,41822.0,0.073]
[1641726698683,1.15329838,41823.0,41822.0,0.07382976]
[1641726698884,0.722584,41823.0,41822.0,0.07382976]
[1641726699089,0.372584,41823.0,41822.0,0.07382976]
[1641726699288,0.00042341,41825.0,41822.0,0.17511914]
[1641726699485,0.00042341,41825.0,41822.0,0.2349152]
[1641726699686,0.00042341,41825.0,41822.0,0.11062582]
[1641726699884,0.00041394,41823.0,41822.0,0.11062582]
[1641726700085,0.00041394,41823.0,41822.0,0.18021682]
[1641726700285,0.00041394,41823.0,41822.0,0.25221682]
[1641726700921,0.00039255,41823.0,41822.0,0.25221682]
[1641726701522,0.00039255,41823.0,41822.0,0.18021682]
[1641726702325,0.00039255,41823.0,41822.0,0.25121682]
[1641726702925,0.00039255,41823.0,41822.0,0.30121682]
[1641726703124,0.00039255,41823.0,41822.0,0.83596382]
[1641726703725,0.00039255,41823.0,41822.0,1.20023965]
[1641726703925,0.00039255,41823.0,41822.0,0.83720637]
[1641726704176,0.00039388,41823.0,41822.0,0.76620637]
[1641726704379,0.00039388,41823.0,41822.0,1.19959605]
[1641726705175,0.00040312,41823.0,41822.0,1.19959605]
[1641726705577,0.00040312,41823.0,41822.0,1.12759605]
[1641726706378,0.00040312,41823.0,41822.0,2.20059605]
[1641726706579,0.0002,41838.0,41823.0,1.05]
[1641726706779,0.0002,41838.0,41831.0,0.00128154]
[1641726707179,0.372584,41837.0,41833.0,0.11955167]
[1641726707678,0.372584,41837.0,41833.0,0.41693922]
[1641726707935,0.372584,41837.0,41833.0,0.47671522]
[1641726708126,0.0002,41838.0,41833.0,0.47671522]
[1641726708324,0.0002,41838.0,41835.0,0.059781]
[1641726708524,0.3680064,41837.0,41835.0,0.06060277]
[1641726709026,0.3680064,41837.0,41835.0,0.11060277]
[1641726709226,0.0002,41838.0,41836.0,0.12546986]
[1641726709427,0.0002,41838.0,41837.0,0.68591835]
[1641726709728,0.0002,41838.0,41837.0,0.53537509]
[1641726710326,0.0002,41838.0,41837.0,0.55137509]
[1641726711526,0.0002,41838.0,41837.0,0.94562588]
[1641726711776,0.0002,41838.0,41837.0,0.90254545]
[1641726711976,0.0002,41838.0,41837.0,0.53537509]
[1641726712389,0.00031001,41853.0,41852.0,0.25818505]
[1641726712582,0.00041001,41857.0,41854.0,1.25]
[1641726712878,0.00031001,41863.0,41858.0,1.05]
[1641726713076,0.00031001,41863.0,41859.0,0.384665]
[1641726713277,0.00031001,41863.0,41861.0,0.32766751]
[1641726713583,0.02322232,41866.0,41863.0,1.05]
[1641726713782,0.00567381,41869.0,41866.0,0.384665]
[1641726713975,0.00067381,41869.0,41867.0,0.38586815]
[1641726714175,0.00067381,41869.0,41868.0,0.00127546]
[1641726714378,0.00067381,41869.0,41868.0,0.74168878]
[1641726714579,0.0001,41870.0,41869.0,2.126]
[1641726714880,0.0001,41870.0,41869.0,2.510665]
[1641726715176,0.00041001,41876.0,41871.0,1.476]
[1641726715177,0.0002,41876.0,41871.0,1.476]
[1641726715431,0.00031001,41881.0,41875.0,0.02179344]
[1641726715631,0.01041001,41882.0,41879.0,0.00129475]
[1641726715831,0.01041001,41882.0,41881.0,0.2]
[1641726716031,0.01041001,41882.0,41881.0,0.384665]
[1641726716231,0.01041001,41882.0,41880.0,0.20126071]
[1641726716232,0.01041001,41882.0,41880.0,0.00126071]
[1641726716432,0.76041001,41882.0,41881.0,0.0269]
[1641726716631,0.75834649,41882.0,41881.0,0.0269]
[1641726716830,0.37843001,41882.0,41881.0,0.0268]
[1641726717432,0.01041001,41882.0,41881.0,0.0268]
[1641726717631,0.01041001,41882.0,41879.0,0.11942375]
[1641726717832,0.01041001,41882.0,41880.0,0.38587099]
[1641726718031,0.01041001,41882.0,41880.0,0.48587099]
[1641726718232,0.01080647,41882.0,41880.0,0.00120599]
[1641726718434,0.01080647,41882.0,41880.0,0.01520599]
[1641726718632,0.01080647,41882.0,41881.0,0.00067702]
[1641726719276,0.01080646,41882.0,41881.0,0.00067702]
[1641726720277,0.01120292,41882.0,41881.0,0.35067702]
[1641726720580,0.01080647,41882.0,41881.0,0.40434202]
[1641726720785,0.01080647,41882.0,41881.0,0.01967702]
[1641726721177,0.37882647,41882.0,41881.0,0.21967702]
[1641726721383,0.01049646,41882.0,41881.0,0.40434202]
[1641726721579,0.01049646,41882.0,41881.0,0.38534202]
[1641726721779,0.01049646,41882.0,41881.0,0.73270824]
[1641726721980,0.01049646,41882.0,41881.0,0.85210524]
[1641726722281,0.00041001,41884.0,41882.0,1.634665]
[1641726722480,0.00041001,41884.0,41883.0,1.660665]
[1641726722929,0.00041001,41884.0,41883.0,0.484665]
[1641726723327,0.00041001,41884.0,41883.0,0.384665]
[1641726723527,0.00041001,41884.0,41883.0,0.38585332]
[1641726724028,0.0001,41884.0,41883.0,1.76185332]
[1641726724228,0.0001,41884.0,41883.0,1.76309736]
[1641726724429,0.0001,41884.0,41883.0,1.68609736]
[1641726724627,0.0001,41884.0,41883.0,1.83609736]
[1641726725232,0.00052305,41885.0,41883.0,1.83609736]
[1641726725432,0.00052305,41885.0,41884.0,0.0003]
[1641726725732,0.00052305,41885.0,41884.0,1.084665]
[1641726725928,0.00052305,41885.0,41884.0,1.860665]
[1641726726129,0.00052305,41885.0,41884.0,0.484665]
[1641726726329,0.00052305,41885.0,41884.0,1.982665]
[1641726726783,0.00041304,41885.0,41884.0,2.29307621]
[1641726726985,0.0001,41888.0,41886.0,0.644348]
[1641726727187,0.00407424,41891.0,41890.0,1.05]
[1641726727384,0.00031001,41892.0,41890.0,3.180665]
[1641726727587,0.00149083,41893.0,41892.0,1.476]
[1641726727786,0.00149083,41893.0,41892.0,1.660665]
[1641726727986,0.00149083,41893.0,41892.0,0.484665]
[1641726728184,0.00031001,41893.0,41892.0,0.484665]
[1641726728384,0.00031001,41893.0,41892.0,0.503665]
[1641726728585,0.00031001,41893.0,41892.0,0.403665]
[1641726729483,0.00031001,41893.0,41892.0,0.503665]
[1641726729684,0.00031001,41893.0,41892.0,0.484665]
[1641726729887,0.00031001,41893.0,41891.0,0.06034818]
[1641726730085,0.66911079,41892.0,41891.0,0.00066918]
[1641726730287,0.31911079,41892.0,41891.0,0.00066918]
[1641726730525,0.31911079,41892.0,41891.0,0.05766918]
[1641726731524,0.31950176,41892.0,41891.0,0.05766918]
[1641726731726,0.31950176,41892.0,41891.0,0.00066918]
[1641726731927,0.00039097,41892.0,41891.0,0.00066918]
[1641726732127,0.00039097,41892.0,41891.0,0.44503218]
[1641726732629,0.00039097,41892.0,41891.0,0.09436718]
[1641726732830,0.00039097,41892.0,41891.0,0.03466918]
[1641726733028,0.36841097,41892.0,41891.0,0.03466918]
[1641726733631,0.36841097,41892.0,41891.0,0.00066918]
[1641726733832,0.65981516,41892.0,41891.0,0.00066918]
[1641726734476,0.65981516,41892.0,41891.0,0.04166918]
[1641726734876,0.65982438,41892.0,41891.0,0.04166918]
[1641726735077,0.65982438,41892.0,41891.0,0.04154095]